fUST/lending_fUST_20260113
["ID","MTS","AMOUNT","RATE_DAILY","PERIOD"]
[401580300,1768307468337,-213.034956,0.00021985,2]
[401580301,1768307468347,-213.034956,0.00021985,2]
[401580302,1768307468357,-213.034956,0.00021985,2]
[401580303,1768307468366,-213.034956,0.00021985,2]
[401580304,1768307468376,-5000.0,0.00022,2]
[401580305,1768307468386,-257.8,0.00022,2]
[401580306,1768307468396,-600.0,0.0002208,2]
[401580307,1768307468406,-4650.01,0.000221,14]
[401580308,1768307468416,-161.93,0.000221,7]
[401580309,1768307468426,-157.94,0.000221,7]
[401580310,1768307468436,-25703.46,0.000221,2]
[401580311,1768307468445,-156.798083,0.000221,2]
[401580312,1768307468455,-190.224085,0.000221,2]
[401580313,1768307468464,-190.224085,0.000221,2]
[401580314,1768307468474,-190.224085,0.000221,2]
[401580315,1768307468483,-190.224085,0.000221,2]
[401580316,1768307468494,-308.37478184,0.0002211,6]
[401580317,1768307468503,-346.02342806,0.00022119,30]
[401580318,1768307468513,-5000.0,0.00022202,2]
[401580319,1768307468524,-600.0,0.0002231,2]
[401580320,1768307468533,-568.1769716,0.00022351,2]
[401580321,1768307468542,-345.92342806,0.00022398,30]
[401580322,1768307468551,-300.0,0.00022466,2]
[401580323,1768307468561,-200.0,0.00022466,2]
[401580324,1768307468570,-750.0,0.00022466,2]
[401580325,1768307468580,-1033.69178538,0.000225,2]
[401580326,1768307468590,-600.0,0.0002254,2]
[401580327,1768307468600,-212.84,0.000226,7]
[401580328,1768307468611,-201.304491,0.000227,2]
[401580329,1768307468621,-244.011868,0.000227,2]
[401580330,1768307468631,-35714.28,0.000227,3]
[401580331,1768307468641,-221.765393,0.000227,2]
[401580332,1768307468650,-151.0,0.000227,2]
[401580333,1768307468660,-151.0,0.000227,2]
[401580334,1768307468670,-151.0,0.000227,2]
[401580335,1768307468680,-151.0,0.000227,2]
[401580336,1768307468690,-151.0,0.000227,2]
[401580337,1768307468699,-177.496281,0.000227,2]
[401580338,1768307468710,-2000.0,0.00022736,7]
[401580339,1768307468720,-600.0,0.0002277,2]
[401580340,1768307468736,-8000.0,0.000228,3]
[401580341,1768307468755,-629.0,0.00022951,2]
[401580342,1768307468765,-2147.0,0.00022951,2]
[401580343,1768307468775,-1367.0,0.00022951,2]
[401580344,1768307468785,-715.0,0.00022951,2]
[401580345,1768307468795,-178.0,0.00022951,2]
[401580346,1768307468805,-417.0,0.00022951,2]
[401580347,1768307468814,-417.0,0.00022951,2]
[401580348,1768307468825,-1973.0,0.00023,2]
[401580349,1768307468839,-164.98,0.00023,2]
[401580350,1768307468849,-1005.0,0.00023,2]
[401580351,1768307468860,-163.89,0.00023,2]
[401580352,1768307468870,-600.0,0.00023,2]
[401580353,1768307468880,-703.06821102,0.00023,2]
[401580354,1768307468890,-1041.66666667,0.00023,3]
[401580355,1768307468899,-1400.0,0.00023014,2]
[401580356,1768307468909,-450.0,0.00023014,2]
[401580357,1768307468919,-250.0,0.00023014,2]
[401580358,1768307468929,-850.0,0.00023014,2]
[401580359,1768307468938,-1567.0,0.00023049,2]
[401580360,1768307468948,-276.528785,0.00023138,2]
[401580361,1768307468957,-1000.0,0.00023154,10]
[401580362,1768307468967,-492.0,0.00023154,10]
[401580363,1768307468977,-500.0,0.000232,2]
[401580364,1768307468987,-170.0,0.00023205,9]
[401580365,1768307468996,-600.0,0.0002323,2]
[401580366,1768307469006,-500.0,0.00023298,2]
[401580367,1768307469015,-158.36,0.000233,2]
[401580368,1768307469025,-600.0,0.00023302,2]
[401580369,1768307469035,-500.0,0.00023349,2]
[401580370,1768307469044,-151.0,0.00023379,2]
[401580371,1768307469054,-189.191226,0.00023379,2]
[401580372,1768307469063,-151.0,0.00023379,2]
[401580373,1768307469073,-600.0,0.0002346,2]
[401580374,1768307469082,-600.0,0.00023461,2]
[401580375,1768307469091,-500.0,0.00023483,2]
[401580376,1768307469101,-522.86422354,0.00023542,2]
[401580377,1768307469110,-1000.0,0.00023548,2]
[401580378,1768307469119,-500.0,0.00023559,2]
[401580379,1768307469128,-600.0,0.00023562,2]
[401580380,1768307469138,-210.87964947,0.00023562,2]
[401580381,1768307469148,-950.0,0.00023562,2]
[401580382,1768307469157,-1000.0,0.00023573,2]
[401580383,1768307469167,-151.0,0.00023577,2]
[401580384,1768307469176,-165.500742,0.00023577,2]
[401580385,1768307469185,-7000.0,0.000236,3]
[401580386,1768307469195,-500.0,0.00023608,2]
[401580387,1768307469205,-600.0,0.0002369,2]
[401580388,1768307469215,-4650.01,0.000237,14]
[401580389,1768307469224,-157.94,0.000237,7]
[401580390,1768307469233,-25703.46,0.000237,2]
[401580391,1768307469242,-151.0,0.000237,2]
[401580392,1768307469252,-292.141919,0.000237,2]
[401580393,1768307469261,-151.0,0.000237,2]
[401580394,1768307469271,-156.455459,0.000237,2]
[401580395,1768307469281,-151.488321,0.000237,2]
[401580396,1768307469291,-151.488321,0.000237,2]
[401580397,1768307469300,-151.488321,0.000237,2]
[401580398,1768307469309,-166.89901,0.000237,2]
[401580399,1768307469318,-151.488321,0.000237,2]
[401580400,1768307469328,-166.89901,0.000237,2]
[401580401,1768307469338,-166.89901,0.000237,2]
[401580402,1768307469347,-166.89901,0.000237,2]
[401580403,1768307469357,-151.0,0.000237,2]
[401580404,1768307469367,-151.0,0.000237,2]
[401580405,1768307469377,-151.0,0.000237,2]
[401580406,1768307469386,-184.82134,0.000237,2]
[401580407,1768307469396,-184.82134,0.000237,2]
[401580408,1768307469405,-184.82134,0.000237,2]
[401580409,1768307469415,-184.82134,0.000237,2]
[401580410,1768307469424,-165.293585,0.000237,2]
[401580411,1768307469433,-165.293585,0.000237,2]
[401580412,1768307469442,-165.293585,0.000237,2]
[401580413,1768307469452,-165.293585,0.000237,2]
[401580414,1768307469461,-151.0,0.000237,2]
[401580415,1768307469471,-600.0,0.00023755,2]
[401580416,1768307469480,-500.0,0.00023777,2]
[401580417,1768307469490,-500.0,0.00023822,2]
[401580418,1768307469499,-500.0,0.00023836,2]
[401580419,1768307469508,-500.0,0.0002391,2]
[401580420,1768307469519,-600.0,0.0002392,2]
[401580421,1768307469528,-600.0,0.0002393,2]
[401580422,1768307469539,-330.0,0.00023944,2]
[401580423,1768307469550,-200.0,0.0002399,2]
[401580424,1768307469559,-15446.91762944,0.00024,2]
[401580425,1768307469569,-1736.34240518,0.00024,2]
[401580426,1768307469578,-465.87896715,0.00024,2]
[401580427,1768307469587,-500.0,0.00024,2]
[401580428,1768307469596,-241.0,0.00024,2]
[401580429,1768307469606,-15000.0,0.00024,2]
[401580430,1768307469615,-182.76720338,0.00024015,2]
[401580431,1768307469625,-600.0,0.00024027,2]
[401580432,1768307469635,-190.0,0.00024031,2]
[401580433,1768307469644,-714.58099895,0.00024037,2]
[401580434,1768307469654,-600.0,0.00024053,2]
[401580435,1768307469664,-5000.0,0.00024059,2]
[401580436,1768307469674,-500.0,0.00024085,2]
[401580437,1768307469683,-1136.37377904,0.00024089,2]
[401580438,1768307469693,-901.45639851,0.00024092,2]
[401580439,1768307469703,-212.84,0.000241,7]
[401580440,1768307469712,-604.59908238,0.000241,2]
[401580441,1768307469723,-1600.83882595,0.0002411,2]
[401580442,1768307469733,-752.3110269,0.0002411,2]
[401580443,1768307469743,-1050.0,0.0002411,2]
[401580444,1768307469753,-300673.18612841,0.00024142,2]
[401580445,1768307469763,-151.0,0.00024142,2]
[401580446,1768307469772,-151.0,0.00024142,2]
[401580447,1768307469782,-213.034956,0.00024142,2]
[401580448,1768307469791,-213.034956,0.00024142,2]
[401580449,1768307469800,-213.034956,0.00024142,2]
[401580450,1768307469810,-213.034956,0.00024142,2]
[401580451,1768307469821,-151.0,0.00024142,2]
[401580452,1768307469831,-151.0,0.00024142,2]
[401580453,1768307469844,-151.0,0.00024142,2]
[401580454,1768307469854,-151.488321,0.00024142,2]
[401580455,1768307469863,-151.488321,0.00024142,2]
[401580456,1768307469873,-151.488321,0.00024142,2]
[401580457,1768307469883,-166.89901,0.00024142,2]
[401580458,1768307469894,-151.488321,0.00024142,2]
[401580459,1768307469904,-166.89901,0.00024142,2]
[401580460,1768307469915,-166.89901,0.00024142,2]
[401580461,1768307469925,-166.89901,0.00024142,2]
[401580462,1768307469934,-151.0,0.00024142,2]
[401580463,1768307469943,-151.0,0.00024142,2]
[401580464,1768307469952,-184.82134,0.00024142,2]
[401580465,1768307469961,-184.82134,0.00024142,2]
[401580466,1768307469971,-184.82134,0.00024142,2]
[401580467,1768307469980,-184.82134,0.00024142,2]
[401580468,1768307469989,-165.293585,0.00024142,2]
[401580469,1768307469998,-165.293585,0.00024142,2]
[401580470,1768307470008,-165.293585,0.00024142,2]
[401580471,1768307470017,-165.293594,0.00024142,2]
[401580472,1768307470026,-151.0,0.00024142,2]
[401580473,1768307470036,-151.0,0.00024142,2]
[401580474,1768307470045,-151.0,0.00024142,2]
[401580475,1768307470054,-151.0,0.00024142,2]
[401580476,1768307470065,-151.0,0.00024142,2]
[401580477,1768307470074,-151.0,0.00024142,2]
[401580478,1768307470083,-190.224085,0.00024142,2]
[401580479,1768307470092,-190.224085,0.00024142,2]
[401580480,1768307470102,-190.224085,0.00024142,2]
[401580481,1768307470111,-190.224093,0.00024142,2]
[401580482,1768307470120,-1000.0,0.00024144,2]
[401580483,1768307470130,-600.0,0.0002415,2]
[401580484,1768307470140,-39251.30769687,0.000242,2]
[401580485,1768307470149,-5056.9962408,0.000242,2]
[401580486,1768307470159,-1000.0,0.00024209,2]
[401580487,1768307470168,-1000.0,0.00024217,2]
[401580488,1768307470178,-1000.0,0.00024255,2]
[401580489,1768307470187,-500.0,0.0002426,2]
[401580490,1768307470197,-170.0,0.00024301,12]
[401580491,1768307470206,-500.0,0.00024317,2]
[401580492,1768307470215,-622.00426365,0.00024351,2]
[401580493,1768307470225,-1000.0,0.00024351,2]
[401580494,1768307470235,-600.0,0.0002438,2]
[401580495,1768307470245,-151.07856085,0.00024448,5]
[401580496,1768307470256,-500.0,0.00024451,2]
[401580497,1768307470267,-2000.0,0.00024462,7]
[401580498,1768307470276,-600.0,0.00024514,2]
[401580499,1768307470286,-500.0,0.00024544,2]
[401580500,1768307470296,-600.0,0.00024574,2]
[401580501,1768307470307,-734.71995112,0.0002461,2]
[401580502,1768307470316,-500.0,0.00024633,2]
[401580503,1768307470327,-600.0,0.00024649,2]
[401580504,1768307470337,-156825.46243198,0.0002465,2]
[401580505,1768307470350,-514.12757482,0.0002465,2]
[401580506,1768307470365,-500.0,0.0002465,2]
[401580507,1768307470374,-1150.0,0.00024658,2]
[401580508,1768307470384,-380.0,0.00024658,2]
[401580509,1768307470393,-200.0,0.00024658,2]
[401580510,1768307470402,-500.0,0.00024658,2]
[401580511,1768307470411,-600.0,0.00024671,2]
[401580512,1768307470421,-196.84669383,0.0002469,2]
[401580513,1768307470430,-213.034956,0.000247,7]
[401580514,1768307470440,-213.034956,0.000247,7]
[401580515,1768307470450,-213.034956,0.000247,7]
[401580516,1768307470461,-213.034956,0.000247,7]
[401580517,1768307470471,-151.488321,0.000247,7]
[401580518,1768307470481,-151.488321,0.000247,7]
[401580519,1768307470491,-151.488321,0.000247,7]
[401580520,1768307470501,-166.89901,0.000247,7]
[401580521,1768307470511,-151.488317,0.000247,7]
[401580522,1768307470520,-166.89901,0.000247,7]
[401580523,1768307470529,-166.89901,0.000247,7]
[401580524,1768307470538,-166.89901,0.000247,7]
[401580525,1768307470548,-184.82134,0.000247,7]
[401580526,1768307470557,-184.82134,0.000247,7]
[401580527,1768307470566,-184.82134,0.000247,7]
[401580528,1768307470575,-184.821337,0.000247,7]
[401580529,1768307470584,-107142.84,0.000247,3]
[401580530,1768307470594,-1000.0,0.00024743,2]
[401580531,1768307470604,-16832.68240312,0.00024774,2]
[401580532,1768307470613,-600.0,0.00024786,2]
[401580533,1768307470622,-500.0,0.00024793,2]
[401580534,1768307470632,-500.0,0.00024795,2]
[401580535,1768307470641,-883.75,0.000248,30]
[401580536,1768307470652,-499.3,0.0002481,2]
[401580537,1768307470662,-151.0,0.000249,7]
[401580538,1768307470671,-151.0,0.000249,7]
[401580539,1768307470681,-213.034956,0.000249,7]
[401580540,1768307470690,-213.034956,0.000249,7]
[401580541,1768307470699,-213.034956,0.000249,7]
[401580542,1768307470708,-213.03494806,0.000249,7]
[401580543,1768307470717,-151.0,0.000249,7]
[401580544,1768307470726,-151.0,0.000249,7]
[401580545,1768307470736,-151.0,0.000249,7]
[401580546,1768307470745,-634819.056649,0.000249,2]
[401580547,1768307470755,-1000.0,0.00024903,2]
[401580548,1768307470764,-500.0,0.00024932,2]
[401580549,1768307470775,-1209.330335,0.0002498,5]
[401580550,1768307470784,-600.0,0.00024983,2]
[401580551,1768307470793,-500.0,0.00024994,2]
[401580552,1768307470804,-1085.93385029,0.00025,2]
[401580553,1768307470813,-2675.74981379,0.00025,2]
[401580554,1768307470823,-90000.0,0.00025,2]
[401580555,1768307470835,-1274.43999481,0.00025,15]
[401580556,1768307470845,-20000.0,0.00025,3]
[401580557,1768307470855,-154.81198228,0.00025,2]
[401580558,1768307470864,-10722.0,0.00025,10]
[401580559,1768307470874,-500.0,0.00025,2]
[401580560,1768307470883,-6329.53911653,0.00025,2]
[401580561,1768307470893,-2928.46757781,0.00025,30]
[401580562,1768307470902,-200.0,0.00025,17]
[401580563,1768307470911,-180.0,0.00025,2]
[401580564,1768307470921,-1041.66666667,0.00025,30]
[401580565,1768307470931,-1041.66666667,0.00025,10]
[401580566,1768307470941,-1041.66666667,0.00025,7]
[401580567,1768307470951,-1000.0,0.00025,5]
[401580568,1768307470960,-5000.0,0.00025,30]
[401580569,1768307470969,-5000.0,0.00025,30]
[401580570,1768307470978,-1000.0,0.00025027,7]
[401580571,1768307470987,-500.0,0.00025038,7]
[401580572,1768307470997,-500.0,0.00025069,2]
[401580573,1768307471007,-500.71,0.000251,7]
[401580574,1768307471114,-500.0,0.0002513,7]
[401580575,1768307471124,-1000.0,0.00025168,7]
[401580576,1768307471134,-1000.0,0.00025184,7]
[401580577,1768307471144,-500.0,0.000252,2]
[401580578,1768307471153,-4650.01,0.000252,14]
[401580579,1768307471163,-161.93,0.000252,7]
[401580580,1768307471172,-157.94,0.000252,7]
[401580581,1768307471181,-25703.46,0.000252,2]
[401580582,1768307471191,-250.0,0.00025205,2]
[401580583,1768307471200,-1250.0,0.00025205,2]
[401580584,1768307471210,-500.0,0.00025206,2]
[401580585,1768307471220,-600.0,0.00025299,7]
[401580586,1768307471229,-500.0,0.00025343,2]
[401580587,1768307471238,-500.0,0.00025353,7]
[401580588,1768307471247,-172.0,0.00025397,16]
[401580589,1768307471257,-500.0,0.00025408,7]
[401580590,1768307471266,-600.0,0.00025447,7]
[401580591,1768307471276,-900.0,0.00025469,3]
[401580592,1768307471285,-1000.0,0.0002547,10]
[401580593,1768307471294,-791.0,0.0002547,10]
[401580594,1768307471303,-1000.0,0.00025475,7]
[401580595,1768307471312,-500.0,0.0002548,2]
[401580596,1768307471322,-212.84,0.000255,7]
[401580597,1768307471331,-500.0,0.00025565,7]
[401580598,1768307471340,-500.0,0.0002558,7]
[401580599,1768307471350,-1000.0,0.00025595,7]
[401580600,1768307471359,-158.36,0.000256,2]
[401580601,1768307471368,-500.0,0.00025617,2]
[401580602,1768307471377,-1000.0,0.00025664,7]
[401580603,1768307471387,-600.0,0.00025726,7]
[401580604,1768307471396,-350.0,0.00025753,2]
[401580605,1768307471406,-1350.0,0.00025753,2]
[401580606,1768307471415,-500.0,0.00025754,2]
[401580607,1768307471425,-600.0,0.00025765,7]
[401580608,1768307471434,-1000.0,0.00025786,7]
[401580609,1768307471443,-500.0,0.00025891,2]
[401580610,1768307471452,-1000.0,0.000259,7]
[401580611,1768307471462,-152.03,0.000259,2]
[401580612,1768307471471,-154.39,0.000259,2]
[401580613,1768307471480,-166.62,0.000259,2]
[401580614,1768307471489,-5000.0,0.00025916,2]
[401580615,1768307471498,-629.0,0.00025951,2]
[401580616,1768307471508,-2147.0,0.00025951,2]
[401580617,1768307471516,-715.0,0.00025951,2]
[401580618,1768307471526,-178.0,0.00025951,2]
[401580619,1768307471535,-417.0,0.00025951,2]
[401580620,1768307471545,-417.0,0.00025951,2]
[401580621,1768307471554,-500.0,0.00025981,7]
[401580622,1768307471563,-529.98450437,0.00026,2]
[401580623,1768307471572,-19900.0,0.00026,2]
[401580624,1768307471581,-343.96,0.00026,2]
[401580625,1768307471590,-202.17,0.00026,2]
[401580626,1768307471599,-500.0,0.00026,2]
[401580627,1768307471608,-180.0,0.00026,2]
[401580628,1768307471618,-20710.35957173,0.00026,10]
[401580629,1768307471627,-200.0,0.00026,30]
[401580630,1768307471636,-20766.37400238,0.00026,30]
[401580631,1768307471646,-600.0,0.00026007,7]
[401580632,1768307471655,-1000.0,0.00026025,7]
[401580633,1768307471664,-500.0,0.00026028,2]
[401580634,1768307471673,-150.67,0.000261,2]
[401580635,1768307471682,-500.0,0.00026117,7]
[401580636,1768307471691,-600.0,0.00026151,7]
[401580637,1768307471700,-194.69412162,0.0002616,2]
[401580638,1768307471709,-500.0,0.00026165,2]
[401580639,1768307471719,-293.85068442,0.00026178,7]
[401580640,1768307471728,-2000.0,0.00026188,7]
[401580641,1768307471737,-500.0,0.00026189,7]
[401580642,1768307471750,-600.0,0.00026199,7]
[401580643,1768307471769,-153.66,0.000262,2]
[401580644,1768307471782,-600.0,0.00026281,7]
[401580645,1768307471791,-154.1,0.000263,2]
[401580646,1768307471800,-154.26,0.000263,2]
[401580647,1768307471809,-949.37,0.000263,3]
[401580648,1768307471819,-1377.58,0.000263,3]
[401580649,1768307471828,-2217.97,0.000263,3]
[401580650,1768307471839,-450.0,0.00026301,2]
[401580651,1768307471849,-1450.0,0.00026301,2]
[401580652,1768307471859,-500.0,0.00026302,2]
[401580653,1768307471868,-500.0,0.00026312,7]
[401580654,1768307471878,-675.8315557,0.00026351,2]
[401580655,1768307471887,-500.0,0.00026375,7]
[401580656,1768307471896,-500.0,0.00026439,2]
[401580657,1768307471906,-600.0,0.00026444,7]
[401580658,1768307471916,-1000.0,0.00026447,7]
[401580659,1768307471926,-500.0,0.00026455,7]
[401580660,1768307471935,-500.0,0.00026489,7]
[401580661,1768307471944,-173.0,0.00026493,20]
[401580662,1768307471953,-152.03,0.000265,2]
[401580663,1768307471962,-343.96,0.000265,2]
[401580664,1768307471971,-202.17,0.000265,2]
[401580665,1768307471980,-164.98,0.000265,2]
[401580666,1768307471990,-163.89,0.000265,2]
[401580667,1768307471998,-808.6,0.000265,3]
[401580668,1768307472008,-600.0,0.00026529,7]
[401580669,1768307472017,-600.0,0.00026546,7]
[401580670,1768307472027,-500.0,0.00026576,2]
[401580671,1768307472035,-4650.01,0.000266,14]
[401580672,1768307472044,-157.94,0.000266,7]
[401580673,1768307472055,-25703.46,0.000266,2]
[401580674,1768307472065,-167.81,0.000266,7]
[401580675,1768307472075,-166.376544,0.000266,7]
[401580676,1768307472085,-151.0,0.000266,7]
[401580677,1768307472093,-151.0,0.000266,7]
[401580678,1768307472103,-500.0,0.0002662,7]
[401580679,1768307472112,-333.0,0.0002666,2]
[401580680,1768307472121,-600.0,0.0002667,7]
[401580681,1768307472130,-150.67,0.000267,2]
[401580682,1768307472139,-500.0,0.00026713,2]
[401580683,1768307472148,-500.0,0.00026795,7]
[401580684,1768307472158,-1000.0,0.00026821,7]
[401580685,1768307472166,-550.0,0.00026849,2]
[401580686,1768307472175,-1550.0,0.00026849,2]
[401580687,1768307472186,-500.0,0.0002685,2]
[401580688,1768307472195,-212.84,0.000269,7]
[401580689,1768307472204,-295.97,0.000269,3]
[401580690,1768307472214,-500.0,0.00026901,7]
[401580691,1768307472223,-600.0,0.00026953,7]
[401580692,1768307472233,-1000.0,0.00026958,7]
[401580693,1768307472243,-500.0,0.00026987,2]
[401580694,1768307472252,-152.03,0.00027,2]
[401580695,1768307472263,-153.66,0.00027,2]
[401580696,1768307472272,-153.35,0.00027,2]
[401580697,1768307472281,-500.0,0.00027,2]
[401580698,1768307472290,-90129.72490667,0.00027,30]
[401580699,1768307472300,-1041.66666667,0.00027,30]
[401580700,1768307472309,-1041.66666667,0.00027,7]
[401580701,1768307472319,-600.0,0.00027057,7]
[401580702,1768307472328,-500.0,0.00027072,7]
[401580703,1768307472337,-343.96,0.000271,2]
[401580704,1768307472346,-202.17,0.000271,2]
[401580705,1768307472356,-154.1,0.000271,2]
[401580706,1768307472366,-600.0,0.00027114,7]
[401580707,1768307472376,-594.99407846,0.00027124,2]
[401580708,1768307472387,-500.0,0.00027124,7]
[401580709,1768307472396,-194.1476836,0.00027164,2]
[401580710,1768307472405,-194.1476836,0.00027164,2]
[401580711,1768307472415,-194.1476836,0.00027164,2]
[401580712,1768307472425,-154.49,0.000272,2]
[401580713,1768307472435,-600.0,0.00027283,7]
[401580714,1768307472446,-150.67,0.000273,2]
[401580715,1768307472456,-500.0,0.00027333,7]
[401580716,1768307472465,-1000.0,0.00027369,7]
[401580717,1768307472474,-1019.28973139,0.00027382,7]
[401580718,1768307472483,-394.08412848,0.0002739,7]
[401580719,1768307472494,-1000.0,0.00027397,8]
[401580720,1768307472505,-180.70089565,0.00027397,3]
[401580721,1768307472515,-650.0,0.00027397,5]
[401580722,1768307472524,-300.0,0.00027397,2]
[401580723,1768307472533,-300.0,0.00027397,2]
[401580724,1768307472542,-300.0,0.00027397,2]
[401580725,1768307472551,-300.0,0.00027397,2]
[401580726,1768307472560,-300.0,0.00027397,2]
[401580727,1768307472569,-300.0,0.00027397,2]
[401580728,1768307472578,-300.0,0.00027397,2]
[401580729,1768307472587,-300.0,0.00027397,2]
[401580730,1768307472598,-300.0,0.00027397,2]
[401580731,1768307472607,-300.0,0.00027397,2]
[401580732,1768307472616,-300.0,0.00027397,2]
[401580733,1768307472625,-300.0,0.00027397,2]
[401580734,1768307472634,-300.0,0.00027397,2]
[401580735,1768307472643,-300.0,0.00027397,2]
[401580736,1768307472652,-300.0,0.00027397,2]
[401580737,1768307472661,-300.0,0.00027397,2]
[401580738,1768307472670,-300.0,0.00027397,2]
[401580739,1768307472679,-300.0,0.00027397,2]
[401580740,1768307472689,-300.0,0.00027397,2]
[401580741,1768307472697,-300.0,0.00027397,2]
[401580742,1768307472708,-300.0,0.00027397,2]
[401580743,1768307472717,-300.0,0.00027397,2]
[401580744,1768307472727,-300.0,0.00027397,2]
[401580745,1768307472735,-300.0,0.00027397,2]
[401580746,1768307472745,-300.0,0.00027397,2]
[401580747,1768307472753,-300.0,0.00027397,2]
[401580748,1768307472763,-300.0,0.00027397,2]
[401580749,1768307472772,-300.0,0.00027397,2]
[401580750,1768307472781,-300.0,0.00027397,2]
[401580751,1768307472790,-300.0,0.00027397,2]
[401580752,1768307472799,-300.0,0.00027397,2]
[401580753,1768307472808,-300.0,0.00027397,2]
[401580754,1768307472817,-300.0,0.00027397,2]
[401580755,1768307472827,-300.0,0.00027397,2]
[401580756,1768307472841,-300.0,0.00027397,2]
[401580757,1768307472849,-300.0,0.00027397,2]
[401580758,1768307472858,-300.0,0.00027397,2]
[401580759,1768307472867,-300.0,0.00027397,2]
[401580760,1768307472877,-300.0,0.00027397,2]
[401580761,1768307472886,-300.0,0.00027397,2]
[401580762,1768307472895,-300.0,0.00027397,2]
[401580763,1768307472905,-1650.0,0.00027397,5]
[401580764,1768307472916,-1000.0,0.00027412,7]
[401580765,1768307472926,-1000.0,0.00027467,7]
[401580766,1768307472935,-152.03,0.000275,2]
[401580767,1768307472944,-45965.23489809,0.000275,2]
[401580768,1768307472953,-500.0,0.00027503,7]
[401580769,1768307472963,-600.0000836,0.00027538,7]
[401580770,1768307472972,-1000.0,0.0002757,7]
[401580771,1768307472981,-808.27350258,0.00027581,7]
[401580772,1768307472991,-207.0,0.00027589,25]
[401580773,1768307472999,-343.96,0.000276,2]
[401580774,1768307473008,-202.17,0.000276,2]
[401580775,1768307473017,-1000.0,0.00027645,7]
[401580776,1768307473026,-1000.0,0.0002765,7]
[401580777,1768307473035,-500.0,0.00027652,7]
[401580778,1768307473045,-1594.41498494,0.00027652,7]
[401580779,1768307473054,-5000.0,0.00027774,2]
[401580780,1768307473063,-153.66,0.000278,2]
[401580781,1768307473071,-150.67,0.000279,2]
[401580782,1768307473080,-154.1,0.000279,2]
[401580783,1768307473089,-158.36,0.000279,2]
[401580784,1768307473099,-2000.0,0.00027915,7]
[401580785,1768307473109,-1000.0,0.00027945,8]
[401580786,1768307473118,-750.0,0.00027945,5]
[401580787,1768307473130,-250.0,0.00027945,5]
[401580788,1768307473139,-250.0,0.00027945,5]
[401580789,1768307473149,-1750.0,0.00027945,5]
[401580790,1768307473158,-4189.28,0.00027951,2]
[401580791,1768307473168,-194.1476836,0.00027986,30]
[401580792,1768307473178,-194.1476836,0.00027986,30]
[401580793,1768307473187,-194.1476836,0.00027986,30]
[401580794,1768307473197,-194.1476836,0.00027986,30]
[401580795,1768307473208,-194.1476836,0.00027986,30]
[401580796,1768307473217,-194.1476836,0.00027986,30]
[401580797,1768307473227,-194.1476836,0.00027986,30]
[401580798,1768307473236,-194.1476836,0.00027986,30]
[401580799,1768307473245,-194.1476836,0.00027986,30]